bitfinex/quotes_SOLUSD_20240716
["timestamp","ask_amount","ask_price","bid_price","bid_amount"]
[1721101694301,15.6,157.57,157.56,6.3466]
[1721101695470,6.3449,157.61,157.56,6.3466]
[1721101695674,15.6,157.57,157.56,6.3466]
[1721101695872,6.3442,157.63,157.56,15.8661]
[1721101696201,6.3435,157.65,157.59,6.3455]
[1721101696503,15.6,157.6,157.59,6.3455]
[1721101697082,10.0,157.66,157.62,6.3442]
[1721101697296,15.6,157.63,157.62,6.3442]
[1721101710088,15.6,157.63,157.61,15.8617]
[1721101710295,16.3427,157.66,157.61,15.8617]
[1721101710296,15.6,157.62,157.61,22.2062]
[1721101710477,15.6,157.62,157.57,31.4955]
[1721101710681,15.6,157.58,157.57,37.8418]
[1721101711107,10.0,157.66,157.58,22.2108]
[1721101711108,15.6,157.59,157.58,22.2108]
[1721101711284,10.0,157.66,157.62,6.3441]
[1721101711484,15.6,157.63,157.62,6.3441]
[1721101715197,10.0,157.66,157.63,6.3437]
[1721101715392,15.6,157.64,157.63,6.3437]
[1721101715595,0.03998976,157.67,157.63,15.8589]
[1721101716115,0.03998976,157.67,157.66,6.3427]
[1721101716280,15.63998976,157.67,157.65,6.3431]
[1721101716475,15.6,157.66,157.65,6.3431]
[1721101716677,0.03998976,157.67,157.66,6.3427]
[1721101716881,15.63998976,157.67,157.66,6.3427]
[1721101717078,0.03998976,157.67,157.66,6.3427]
[1721101717288,15.63998976,157.67,157.66,6.3427]
[1721101717682,0.03998976,157.67,157.66,6.3427]
[1721101718113,15.63998976,157.67,157.66,6.3427]
[1721101718400,0.03998976,157.67,157.66,6.3427]
[1721101718605,15.63998976,157.67,157.66,6.3427]
[1721101718999,0.03998976,157.67,157.66,6.3427]
[1721101719604,15.63998976,157.67,157.66,6.3427]
[1721101720100,0.03998976,157.67,157.66,6.3427]
[1721101720404,15.63998976,157.67,157.66,6.3427]
[1721101721706,0.03998976,157.67,157.66,6.3427]
[1721101721891,15.63998976,157.67,157.66,6.3427]
[1721101723410,0.03998976,157.67,157.66,7.61109967]
[1721101723603,0.03998976,157.67,157.66,52.61109967]
[1721101725400,0.03998976,157.67,157.66,74.83109967]
[1721101725996,0.03998976,157.67,157.66,59.23109967]
[1721101726218,0.03998976,157.67,157.66,57.9627]
[1721101726718,0.03998976,157.67,157.66,59.23089529]
[1721101728700,0.03998976,157.67,157.66,74.83089529]
[1721101729807,0.03998976,157.67,157.66,73.5627]
[1721101730201,0.03998976,157.67,157.66,74.83074749]
[1721101730404,0.03998976,157.67,157.66,91.27824749]
[1721101730627,0.03998976,157.67,157.66,90.0102]
[1721101730932,0.03998976,157.67,157.66,91.27831425]
[1721101731214,0.03998976,157.67,157.66,90.0102]
[1721101732204,0.8032809,157.68,157.67,6.3423]
[1721101732545,0.8032809,157.68,157.67,66.9423]
[1721101736368,8.09e-05,157.68,157.67,66.9423]
[1721101736670,6.2089,157.82,157.71,31.7027]
[1721101736869,15.6,157.77,157.72,60.6]
[1721101737167,15.6,157.77,157.76,22.1855]
[1721101737362,6.2089,157.82,157.78,6.3376]
[1721101737529,15.6,157.79,157.78,6.3376]
[1721101737734,15.6,157.79,157.76,22.1855]
[1721101737985,16.2089,157.82,157.78,6.3376]
[1721101738260,15.6,157.79,157.76,22.1852]
[1721101738555,15.6,157.77,157.76,22.1852]
[1721101738741,15.6,157.77,157.76,15.8468]
[1721101739139,15.6,157.77,157.76,22.1855]
[1721101739356,15.6,157.77,157.76,15.8468]
[1721101739546,15.6,157.77,157.75,6.3391]
[1721101739747,15.6,157.76,157.75,6.3391]
[1721101740152,6.3368,157.81,157.76,6.3385]
[1721101740453,16.2089,157.82,157.73,15.8496]
[1721101740454,15.6,157.77,157.73,15.8496]
[1721101740760,20.0,157.8,157.75,6.3387]
[1721101740935,15.6,157.76,157.73,15.8496]
[1721101741141,20.0,157.8,157.76,6.3387]
[1721101741353,6.2089,157.82,157.78,6.3378]
[1721101741559,15.6,157.79,157.78,6.3378]
[1721101741761,15.6,157.79,157.77,22.1834]
[1721101742068,15.6,157.78,157.77,22.1834]
[1721101742637,15.6,157.78,157.77,15.8451]
[1721101742870,6.2089,157.82,157.77,15.8451]
[1721101743065,15.6,157.78,157.77,22.1834]
[1721101745151,0.8032809,157.83,157.79,6.3375]
[1721101745468,15.6,157.8,157.79,6.3374]
[1721101745643,0.8032809,157.83,157.79,15.8431]
[1721101745839,0.8032809,157.83,157.82,6.3363]
[1721101746045,16.4032809,157.83,157.82,6.3363]
[1721101747156,16.4032809,157.83,157.81,15.841]
[1721101747368,15.6,157.82,157.81,22.1775]
[1721101748051,0.8032809,157.83,157.82,6.3363]
[1721101748247,16.4032809,157.83,157.82,6.3363]
[1721101748773,16.4032809,157.83,157.81,22.1777]
[1721101748981,15.6,157.82,157.81,22.1777]
[1721101750160,0.8032809,157.83,157.82,6.3363]
[1721101750360,16.4032809,157.83,157.82,6.3363]
[1721101750769,0.8032809,157.83,157.82,6.3363]
[1721101751065,16.4032809,157.83,157.82,6.3363]
[1721101751489,0.8032809,157.83,157.81,15.841]
[1721101751674,15.6,157.82,157.8,6.3367]
[1721101751875,15.6,157.81,157.8,6.3367]
[1721101752182,0.8032809,157.83,157.81,6.3366]
[1721101752358,15.6,157.82,157.81,6.3366]
[1721101752564,15.6,157.82,157.8,15.8421]
[1721101752865,15.6,157.81,157.8,22.1792]
[1721101753896,0.8032809,157.83,157.81,6.3364]
[1721101754065,15.6,157.82,157.81,6.3364]
[1721101754766,0.8032809,157.83,157.81,6.3364]
[1721101754965,15.6,157.82,157.81,6.3364]
[1721101755595,0.8032809,157.83,157.81,6.3364]
[1721101755890,15.6,157.82,157.81,6.3364]
[1721101756087,0.8032809,157.83,157.8,15.8421]
[1721101756262,15.6,157.81,157.8,22.1792]
[1721101756466,15.6,157.81,157.8,15.8421]
[1721101758384,0.8032809,157.83,157.8,22.1792]
[1721101758700,15.6,157.81,157.8,22.1792]
[1721101759369,25.6,157.81,157.78,6.3376]
[1721101759580,15.6,157.79,157.78,6.3376]
[1721101760162,10.8032809,157.83,157.8,6.337]
[1721101760357,15.6,157.81,157.8,6.337]
[1721101760576,10.8032809,157.83,157.8,6.337]
[1721101760792,10.8032809,157.83,157.79,15.8438]
[1721101760793,0.8032809,157.83,157.79,15.8438]
[1721101761002,15.6,157.8,157.79,15.8438]
[1721101761297,15.6,157.8,157.79,22.1813]
[1721101761592,0.8032809,157.83,157.82,6.3363]
[1721101761898,0.8032809,157.83,157.82,22.1771]
[1721101762071,16.4032809,157.83,157.82,22.1771]
[1721101762267,0.8032809,157.83,157.82,22.1771]
[1721101762583,16.4032809,157.83,157.82,22.1771]
[1721101763067,0.8032809,157.83,157.82,22.1771]
[1721101763601,16.4032809,157.83,157.82,22.1771]
[1721101763790,16.4032809,157.83,157.82,15.8408]
[1721101764201,16.4032809,157.83,157.77,31.0899]
[1721101764416,15.6,157.78,157.77,37.4282]
[1721101764895,0.8032809,157.83,157.8,6.3369]
[1721101765104,15.6,157.81,157.79,15.8429]
[1721101765281,15.6,157.8,157.79,22.1804]
[1721101766707,0.8032809,157.83,157.8,6.3369]
[1721101766915,0.8032809,157.83,157.81,6.3366]
[1721101767092,15.6,157.82,157.81,6.3366]
[1721101767793,0.8032809,157.83,157.81,6.3366]
[1721101768112,15.6,157.82,157.8,6.337]
[1721101768311,15.6,157.81,157.8,6.337]
[1721101768696,15.6,157.81,157.79,15.8429]
[1721101768905,15.6,157.8,157.79,15.8429]
[1721101769090,15.6,157.8,157.79,22.1804]
[1721101769295,15.6,157.8,157.79,15.8429]
[1721101770716,15.6,157.8,157.79,22.1804]
[1721101775616,0.8032809,157.83,157.82,6.3363]
[1721101775797,16.4032809,157.83,157.81,6.3366]
[1721101776227,16.4032809,157.83,157.82,6.3363]
[1721101776917,0.8032809,157.83,157.82,22.1771]
[1721101777105,16.4032809,157.83,157.82,22.1771]
[1721101777306,16.4032809,157.83,157.82,38.727]
[1721101777307,0.8032809,157.83,157.82,38.727]
[1721101777523,16.4032809,157.83,157.82,38.727]
[1721101777711,0.8032809,157.83,157.82,38.727]
[1721101777912,16.4032809,157.83,157.82,38.727]
[1721101778823,0.8032809,157.83,157.82,38.727]
[1721101779034,16.4032809,157.83,157.82,39.99412175]
[1721101779334,16.4032809,157.83,157.82,38.727]
[1721101779542,0.8032809,157.83,157.82,38.727]
[1721101779711,16.4032809,157.83,157.82,38.727]
[1721101780622,0.8032809,157.83,157.82,38.727]
[1721101781025,16.4032809,157.83,157.82,38.727]
[1721101784655,0.8032809,157.83,157.82,38.727]
[1721101784951,16.4032809,157.83,157.82,38.727]
[1721101785428,0.8032809,157.83,157.82,38.727]
[1721101785838,0.8032809,157.83,157.82,83.727]
[1721101786350,0.8032809,157.83,157.82,84.99380141]
[1721101787337,0.8032809,157.83,157.82,83.727]
[1721101787867,0.8032809,157.83,157.82,39.9938652]
[1721101788025,0.8032809,157.83,157.82,84.9938652]
[1721101788354,0.8032809,157.83,157.82,100.5938652]
[1721101788529,15.6,157.92,157.9,6.333]
[1721101788735,15.6,157.91,157.9,6.333]
[1721101788936,15.6,157.91,157.89,6.3334]
[1721101789143,15.6,157.9,157.89,6.3334]
[1721101789441,62.4,157.92,157.9,6.3331]
[1721101789747,15.6,157.91,157.89,6.3334]
[1721101790066,15.6,157.9,157.89,6.3334]
[1721101790266,6.3311,157.95,157.89,6.3334]
[1721101790475,15.6,157.9,157.89,6.3334]
[1721101790640,15.6,157.9,157.89,6.3331]
[1721101791033,26.3315,157.94,157.88,22.1679]
[1721101791471,15.6,157.89,157.88,22.1679]
[1721101792258,26.3315,157.94,157.88,22.1679]
[1721101792259,6.3319,157.93,157.88,22.1679]
[1721101792559,15.6,157.89,157.88,22.1679]
[1721101792771,62.4,157.92,157.88,15.834]
[1721101792941,15.6,157.89,157.88,22.1678]
[1721101794241,62.4,157.92,157.88,22.1678]
[1721101794462,15.6,157.89,157.88,22.1678]
[1721101794861,62.4,157.92,157.89,6.3334]
[1721101795047,15.6,157.9,157.89,6.3334]
[1721101795245,20.0,157.94,157.9,6.333]
[1721101795480,15.6,157.91,157.9,6.333]
[1721101795985,15.6,157.91,157.89,6.3334]
[1721101796150,15.6,157.9,157.89,6.3334]
[1721101796657,62.4,157.92,157.9,6.333]
[1721101796862,15.6,157.91,157.9,6.333]
[1721101798293,15.6,157.91,157.89,6.3334]
[1721101798584,15.6,157.9,157.89,6.3334]
[1721101799285,15.6,157.9,157.87,6.334]
[1721101799478,15.6,157.88,157.87,6.334]
[1721101800370,62.4,157.92,157.87,6.334]
[1721101800567,15.6,157.88,157.85,47.5118]
[1721101800886,62.4,157.92,157.88,15.8346]
[1721101801062,15.6,157.89,157.88,15.8346]
[1721101801608,15.6,157.89,157.85,15.8376]
[1721101801809,15.6,157.89,157.82,16.5499]
[1721101801810,15.6,157.86,157.84,6.3354]
[1721101802107,31.2,157.85,157.8,6.3367]
[1721101802286,15.6,157.81,157.8,6.3367]
[1721101803179,62.4,157.84,157.8,6.3367]
[1721101803413,15.6,157.81,157.78,15.8439]
[1721101803635,15.6,157.79,157.78,15.8439]
[1721101803815,15.6,157.79,157.75,15.8478]
[1721101803980,15.6,157.76,157.75,15.8478]
[1721101804481,15.6,157.76,157.75,22.1869]
[1721101805087,31.2,157.76,157.75,22.1869]
[1721101805311,6.3363,157.82,157.76,6.3386]
[1721101805510,6.3358,157.84,157.78,6.3377]
[1721101805690,20.0,157.83,157.79,6.3373]
[1721101805894,15.6,157.8,157.79,6.3373]
[1721101806190,20.0,157.83,157.79,6.3373]
[1721101806385,20.0,157.83,157.8,6.3371]
[1721101806601,30.91,157.82,157.8,6.3371]
[1721101806904,30.91,157.82,157.78,15.8446]
[1721101807482,10.0,157.88,157.81,15.8415]
[1721101807809,30.91,157.84,157.81,22.1781]
[1721101808307,30.91,157.84,157.82,6.3361]
[1721101809289,30.91,157.84,157.81,15.8415]
[1721101809491,30.91,157.84,157.81,22.1782]
[1721101809697,30.91,157.84,157.83,6.3359]
[1721101810096,30.91,157.84,157.81,22.1778]
[1721101810699,30.91,157.84,157.82,6.3362]
[1721101811796,30.91,157.84,157.83,6.3359]
[1721101812208,30.91,157.87,157.85,6.3351]
[1721101812887,30.91,157.87,157.86,6.3347]
[1721101813503,30.91,157.9,157.86,22.1715]
[1721101814011,30.91,157.9,157.87,6.3342]
[1721101814706,22.95079433,157.94,157.88,6.3338]
[1721101814915,30.91,157.9,157.88,6.3338]
[1721101815206,30.91,157.9,157.89,6.3335]
[1721101816007,30.91,157.93,157.9,6.333]
[1721101816798,30.91,157.93,157.89,6.3334]
[1721101817804,30.91,157.93,157.9,6.3331]
[1721101818618,6.61919433,157.94,157.9,6.3331]
[1721101818917,30.91,157.92,157.91,6.3327]
[1721101819916,30.91,157.92,157.9,6.3331]
[1721101820315,30.91,157.92,157.9,6.333]
[1721101821129,30.91,157.92,157.91,6.3327]
[1721101822605,12.94308345,157.97,157.91,6.3327]
[1721101822811,30.91,157.94,157.91,6.3327]
[1721101826294,30.91,157.94,157.88,15.1288]
[1721101826490,30.91,157.91,157.88,6.3338]
[1721101826699,30.91,157.91,157.89,6.3333]
[1721101827019,30.91,157.91,157.9,6.3331]
[1721101828211,15.44,157.91,157.9,6.3331]
[1721101828515,15.44,157.91,157.89,6.3334]
[1721101828730,15.44,157.9,157.89,6.3334]
[1721101828899,61.76,157.92,157.9,6.3331]
[1721101829099,15.44,157.91,157.9,6.3331]
[1721101829617,61.76,157.92,157.91,22.1645]
[1721101829820,77.2,157.92,157.91,15.8318]
[1721101830123,77.2,157.92,157.9,6.3329]
[1721101830322,15.44,157.91,157.9,6.3329]
[1721101830622,61.76,157.92,157.91,6.3327]
[1721101830812,77.2,157.92,157.91,22.1639]
[1721101831524,22.94318345,157.97,157.91,22.1639]
[1721101831702,22.94318345,157.97,157.92,6.3323]
[1721101831905,77.2,157.93,157.92,6.3323]
[1721101833534,16.61278345,157.97,157.93,6.3318]
[1721101833826,15.44,157.94,157.93,6.3318]
[1721101834123,6.61278345,157.97,157.94,6.3312]
[1721101834323,15.44,157.95,157.94,6.3312]
[1721101834510,6.61278345,157.97,157.94,6.3312]
[1721101834697,15.44,157.95,157.94,6.3312]
[1721101834898,6.61278345,157.97,157.94,6.3312]
[1721101835138,6.61278345,157.97,157.95,6.331]
[1721101835304,15.44,157.96,157.95,6.331]
[1721101835707,6.61278345,157.97,157.95,6.331]
[1721101835708,10.8032809,157.99,157.95,6.331]
[1721101835910,15.44,157.96,157.95,6.331]
[1721101837110,0.8032809,157.99,157.96,15.8265]
[1721101837310,0.8032809,157.99,157.98,6.3299]
[1721101837516,16.2432809,157.99,157.98,6.3299]
[1721101838927,16.2432809,157.99,157.97,6.3302]
[1721101839137,15.44,157.98,157.97,6.3302]
[1721101839335,0.8032809,157.99,157.98,6.3299]
[1721101839641,16.2432809,157.99,157.98,6.3299]
[1721101842238,0.8032809,157.99,157.98,6.3299]
[1721101842443,16.2432809,157.99,157.98,6.3299]
[1721101842814,0.8032809,157.99,157.98,6.3299]
[1721101843438,0.8032809,157.99,157.98,51.3299]
[1721101845352,15.44,158.01,158.0,6.3291]
[1721101845912,10.0,158.08,158.05,6.3267]
[1721101846146,15.44,158.06,158.05,6.3267]
[1721101846918,15.44,158.06,158.04,22.1454]
[1721101847151,15.44,158.06,158.05,6.3271]
[1721101847328,14.94,158.06,158.05,6.3271]
[1721101849417,71.76,158.08,158.05,6.3271]
[1721101849850,15.44,158.06,158.05,6.3271]
[1721101850732,22.89687591,158.12,158.07,6.3263]
[1721101850931,77.2,158.08,158.07,6.3263]
[1721101851132,16.60787591,158.12,158.1,6.3248]
[1721101851341,6.60787591,158.12,158.1,6.3248]
[1721101851640,15.44,158.11,158.1,6.3248]
[1721101852358,10.0,158.1,158.05,6.3267]
[1721101852525,15.44,158.06,158.05,6.3267]
[1721101853148,15.44,158.06,158.04,22.1454]
[1721101853550,15.44,158.05,158.04,22.1454]
[1721101853959,15.44,158.05,158.04,22.1455]
[1721101854258,30.81,158.08,158.07,6.3263]
[1721101858654,30.81,158.08,158.06,6.3266]
[1721101860271,40.81,158.08,158.04,22.1452]
[1721101860433,30.81,158.05,158.0,15.8219]
[1721101861065,30.81,158.05,158.03,6.3275]
[1721101861367,30.81,158.05,158.0,22.1508]
[1721101861368,40.81,158.05,158.0,22.1508]
[1721101861574,30.81,158.02,158.0,15.8219]
[1721101861951,30.81,158.02,158.01,6.3286]
[1721101862269,40.81,158.02,157.97,15.8257]
[1721101862669,30.81,157.99,157.98,6.3299]
[1721101863870,30.81,157.99,157.97,15.8257]
[1721101864089,30.81,158.0,157.97,15.8257]
[1721101864256,30.81,158.0,157.98,6.3298]
[1721101864785,30.81,158.0,157.99,6.3295]
[1721101866076,30.81,158.03,158.01,6.3285]
[1721101866653,30.81,158.03,158.02,6.3283]
[1721101868755,30.81,158.03,158.0,15.8226]
[1721101869171,10.0,158.0,157.96,15.8264]
[1721101869476,10.0,158.02,157.96,15.8264]
[1721101869677,30.81,157.98,157.92,15.8298]
[1721101869869,30.81,157.98,157.94,6.3311]
[1721101870176,30.81,157.98,157.93,6.3319]
[1721101870378,30.81,157.98,157.94,6.3314]
[1721101870755,30.81,157.98,157.96,6.3304]
[1721101870956,30.81,157.98,157.95,22.1582]
[1721101871260,30.81,157.98,157.97,6.3303]
[1721101871859,30.81,157.98,157.95,22.1581]
[1721101872175,30.81,157.98,157.96,6.3306]
[1721101873761,30.81,157.98,157.97,6.3303]
[1721101874180,15.9552,158.08,157.97,16.5996]
[1721101874354,30.81,158.05,158.04,6.3275]
[1721101874760,30.81,158.05,158.03,15.8196]
[1721101874961,30.81,158.05,158.03,22.1471]
[1721101875868,30.81,158.05,158.04,6.3275]
[1721101876361,30.81,158.05,158.03,22.1474]
[1721101876777,30.81,158.05,158.04,6.3275]
[1721101879100,30.81,158.08,158.07,6.3262]
[1721101879284,30.81,158.08,158.05,15.8168]
[1721101879599,30.81,158.08,158.05,22.1438]
[1721101880609,30.81,158.08,158.06,6.3265]
[1721101880818,30.81,158.08,158.07,6.3263]
[1721101880978,6.60005018,158.11,158.09,6.3254]
[1721101881178,6.60005018,158.11,158.1,6.3251]
[1721101881397,30.81,158.11,158.1,6.3251]
[1721101885697,31.6132809,158.14,158.12,6.3241]
[1721101886501,31.6132809,158.14,158.11,15.8115]
[1721101887292,31.6132809,158.14,158.11,22.136]
[1721101888320,31.6132809,158.14,158.11,15.8115]
[1721101888797,31.6132809,158.14,158.11,22.1361]
[1721101889139,31.6132809,158.14,158.11,15.8115]
[1721101889309,31.6132809,158.14,158.07,6.6415]
[1721101890313,31.6132809,158.14,158.11,6.3243]
[1721101890516,31.6132809,158.14,158.13,6.3239]
[1721101890699,31.6132809,158.14,158.1,15.8126]
[1721101891119,31.6132809,158.14,158.11,6.3243]
[1721101891840,31.6132809,158.14,158.12,6.3241]
[1721101893424,31.6132809,158.14,158.13,6.3239]
[1721101894024,0.8032809,158.14,158.13,6.3239]
[1721101896221,0.8032809,158.14,158.12,15.8099]
[1721101896426,0.8032809,158.14,158.11,6.3243]
[1721101896809,0.8032809,158.14,158.12,6.3241]
[1721101897129,0.8032809,158.14,158.13,6.3239]
[1721101897434,0.8032809,158.14,158.11,22.1352]
[1721101898009,0.8032809,158.14,158.07,6.6415]
[1721101898320,30.81,158.12,158.1,6.3249]
[1721101898518,45.81,158.12,157.94,19.09]
[1721101898713,45.81,158.12,157.98,19.09]
[1721101898911,45.81,158.12,158.0,19.09]
[1721101899119,15.0,158.1,158.01,45.0]
[1721101899662,45.81,158.12,158.01,64.09]
[1721101899823,15.0,158.1,158.01,64.09]
[1721101900017,15.0,158.1,158.01,45.0]
[1721101901141,45.81,158.12,158.01,64.09]
[1721101901344,15.0,158.12,158.02,1.26459819]
[1721101901538,46.6132809,158.14,158.04,15.2321]
[1721101901842,46.6132809,158.14,158.05,45.0]
[1721101902028,0.8032809,158.14,158.05,45.0]
[1721101902443,15.0,158.13,158.05,45.0]
[1721101903143,45.81,158.13,158.05,45.0]
[1721101905735,45.81,158.13,158.05,64.09]
[1721101907445,0.8032809,158.14,158.05,64.09]
[1721101910227,0.8032809,158.14,158.05,45.0]
[1721101910740,15.0,158.13,158.05,45.0]
[1721101912658,0.8032809,158.14,158.09,15.2967]
[1721101912862,0.8032809,158.14,158.11,34.3867]
[1721101913148,0.8032809,158.14,158.12,46.26331434]
[1721101913341,0.8032809,158.14,158.12,45.0]
[1721101916182,0.8032809,158.14,158.12,45.89908347]
[1721101916363,0.8032809,158.14,158.12,45.0]
[1721101916559,0.8032809,158.14,158.11,15.2967]
[1721101916759,0.8032809,158.14,158.11,1.26465877]
[1721101916976,0.8032809,158.14,158.08,1.26465877]
[1721101917473,0.8032809,158.14,158.09,1.26469066]
[1721101917895,0.8032809,158.14,158.07,16.2752]
[1721101918471,31.6132809,158.14,158.07,16.2752]
[1721101918681,31.6132809,158.14,158.08,1.26509018]
[1721101918979,31.6132809,158.14,158.07,16.2752]
[1721101919372,31.6132809,158.14,158.03,22.5803]
[1721101919576,46.6132809,158.14,158.03,22.5803]
[1721101920675,46.6132809,158.14,158.03,16.2752]
[1721101920676,30.81,158.11,158.03,16.2752]
[1721101920879,30.81,158.11,157.99,22.5803]
[1721101921053,30.81,158.11,158.0,30.0]
[1721101921876,30.81,158.11,158.01,19.09]
[1721101922076,30.81,158.11,158.02,45.0]
[1721101922972,15.0,158.12,158.02,65.22758728]
[1721101923176,31.6132809,158.14,158.02,65.22758728]
[1721101923877,46.6132809,158.14,158.02,65.22758728]
[1721101924256,46.6132809,158.14,158.02,64.09]
[1721101925480,15.0,158.12,158.02,64.09]
[1721101925687,15.0,158.12,158.03,1.26496986]
[1721101926373,46.6132809,158.14,158.03,1.26496986]
[1721101926776,46.6132809,158.14,158.02,64.09]
[1721101927186,15.0,158.12,158.02,64.09]
[1721101927871,15.0,158.12,158.0,30.0]
[1721101927872,30.81,158.11,158.0,30.0]
[1721101929172,30.81,158.11,158.01,45.0]
[1721101930095,15.0,158.1,158.01,45.0]
[1721101930263,15.0,158.08,158.0,30.0]
[1721101930463,15.0,158.1,157.99,22.5803]
[1721101930670,30.81,158.08,157.99,22.5803]
[1721101930990,45.81,158.08,157.99,22.5803]
[1721101931884,45.81,158.08,158.0,45.0]
[1721101933280,45.81,158.08,157.99,22.5803]
[1721101933893,45.81,158.08,158.0,1.26550197]
[1721101934478,15.0,158.08,158.0,1.26550197]
[1721101934676,15.0,158.08,158.0,46.26550197]
[1721101935295,15.0,158.1,158.0,46.26550197]
[1721101935670,15.0,158.1,158.01,19.09]
[1721101935873,15.0,158.1,158.02,45.0]
[1721101936078,15.0,158.1,158.0,64.09]
[1721101937600,15.0,158.1,158.01,1.26499291]
[1721101937779,15.0,158.1,158.02,1.26499334]
[1721101938294,15.0,158.1,158.0,64.09]
[1721101938478,15.0,158.1,158.01,1.26517468]
[1721101938793,15.0,158.1,158.02,1.26505761]
[1721101938998,15.0,158.1,158.0,45.0]
[1721101939590,30.81,158.08,157.99,22.5803]
[1721101939791,30.81,158.08,157.99,16.2752]
[1721101940091,45.81,158.08,157.99,16.2752]
[1721101940418,30.81,158.08,157.99,16.2752]
[1721101940579,30.81,158.08,157.95,6.6348]
[1721101940580,15.0,158.07,157.95,6.6348]
[1721101940783,15.0,158.07,157.96,30.0]
[1721101941686,15.0,158.05,157.96,49.09]
[1721101942614,15.0,158.05,157.97,64.09]
[1721101942791,15.0,158.05,157.97,45.0]
[1721101942980,15.0,158.05,157.96,45.0]
[1721101943403,15.0,158.05,157.97,19.03]
[1721101943700,15.0,158.05,157.98,45.0]
[1721101943997,15.0,158.05,157.99,1.26540844]
[1721101944398,15.0,158.05,157.98,45.0]
[1721101944596,15.0,158.05,157.95,22.0913]
[1721101946197,15.0,158.05,157.96,45.0]
[1721101947079,45.81,158.05,157.96,45.0]
[1721101947285,45.81,158.05,157.95,15.4565]
[1721101947494,15.0,158.02,157.92,19.03]
[1721101947698,15.0,158.02,157.93,30.0]
[1721101948282,15.0,158.02,157.93,19.03]
[1721101949087,45.81,158.05,157.94,95.29563382]
[1721101949288,15.0,158.05,157.94,95.29563382]
[1721101950512,6.3406,158.06,157.94,95.29563382]
[1721101950899,21.3406,158.06,157.94,95.29563382]
[1721101951117,21.3406,158.06,157.95,1.26548602]
[1721101951411,15.0,158.04,157.96,30.0]
[1721101952302,15.0,158.04,157.97,45.0]
[1721101953792,15.0,158.04,157.98,1.26562759]
[1721101954010,15.0,158.04,157.97,45.0]
[1721101954011,15.0,158.04,157.99,1.26557206]
[1721101954217,21.3406,158.06,158.0,1.26546409]
[1721101954419,15.4781,158.07,158.0,1.26546409]
[1721101954607,15.4781,158.07,157.97,79.4284]
[1721101955514,15.0,158.08,157.99,19.03]
[1721101955717,21.2437,158.1,158.0,64.03]
[1721101956917,21.2437,158.1,158.01,1.26502626]
[1721101957214,16.3765,158.11,158.02,20.29500512]
[1721101957399,16.3765,158.11,158.03,64.03]
[1721101958214,45.81,158.13,158.03,64.03]
[1721101958613,15.0,158.11,158.03,45.0]
[1721101958814,15.0,158.11,158.02,64.03]
[1721101959018,15.0,158.11,157.98,6.6489]
[1721101959019,45.81,158.13,157.98,6.6489]
[1721101959317,45.81,158.13,157.99,50.0]
[1721101959318,15.0,158.11,157.99,50.0]
[1721101959622,45.81,158.13,158.0,19.03]
[1721101960223,45.81,158.13,158.02,19.03]
[1721101960907,45.81,158.13,158.03,45.0]